bitfinex-derivatives/quotes_BNBF0:USTF0_20250908
["timestamp","ask_amount","ask_price","bid_price","bid_amount"]
[1757300083412,1.01619272,879.65,878.84,1.0]
[1757300084316,1.01619272,879.62,878.84,1.0]
[1757300085317,1.01619272,879.62,878.91,0.19758862]
[1757300085516,1.01619272,879.61,878.91,0.19758862]
[1757300086012,1.01619272,879.62,878.91,0.19758862]
[1757300086216,1.01619272,879.61,878.91,0.19758862]
[1757300086418,1.01619272,879.62,878.91,0.19758862]
[1757300086715,1.01619272,879.63,878.91,0.19758862]
[1757300087417,1.01619272,879.64,878.91,0.19758862]
[1757300089214,1.01619272,879.65,878.91,0.19758862]
[1757300090019,1.01619272,879.66,878.91,0.19758862]
[1757300090417,1.01619272,879.48,878.91,0.19758862]
[1757300090722,1.01619272,879.5,878.91,0.19758862]
[1757300091415,1.01619272,879.49,878.91,0.19758862]
[1757300091619,1.01619272,879.51,878.91,0.19758862]
[1757300093516,0.19757404,880.49,878.91,0.19758862]
[1757300093517,1.01619272,879.5,878.91,0.19758862]
[1757300094219,1.01619272,879.49,878.91,0.19758862]
[1757300094924,1.01619272,879.38,878.91,0.19758862]
[1757300095121,1.01619272,879.37,878.91,0.19758862]
[1757300095720,1.01619272,879.36,878.91,0.19758862]
[1757300097228,1.01619272,879.35,878.91,0.19758862]
[1757300097926,1.01619272,879.31,878.91,0.19758862]
[1757300098322,1.01619272,879.3,878.91,0.19758862]
[1757300098527,1.01619272,879.31,878.91,0.19758862]
[1757300098827,1.01619272,879.36,878.91,0.19758862]
[1757300099127,1.01619272,879.33,878.91,0.19758862]
[1757300099327,1.01619272,879.48,878.91,0.19758862]
[1757300099528,1.01619272,879.49,878.91,0.19758862]
[1757300100927,1.01619272,879.63,878.91,0.19758862]
[1757300101124,1.01619272,879.62,878.91,0.19758862]
[1757300101428,1.01619272,879.53,878.91,0.19758862]
[1757300102226,1.01619272,879.48,878.91,0.19758862]
[1757300102930,1.01619272,879.39,878.91,0.19758862]
[1757300103228,1.01619272,879.38,878.91,0.19758862]
[1757300105131,1.01619272,879.35,878.91,0.19758862]
[1757300105426,1.01619272,879.26,878.91,0.19758862]
[1757300105626,1.01619272,879.23,878.91,0.19758862]
[1757300106126,1.01619272,879.22,878.91,0.19758862]
[1757300107731,1.01619272,879.23,878.91,0.19758862]
[1757300108026,1.01619272,879.58,878.91,0.19758862]
[1757300109230,1.01619272,879.34,878.91,0.19758862]
[1757300112635,1.01619272,879.36,878.91,0.19758862]
[1757300113634,1.01619272,879.07,878.91,0.19758862]
[1757300113830,1.01619272,879.06,878.91,0.19758862]
[1757300114437,1.01619272,879.0,878.91,0.19758862]
[1757300115235,1.01619272,879.01,878.91,0.19758862]
[1757300115432,1.01619272,879.0,878.91,0.19758862]
[1757300118339,1.01619272,878.99,878.91,0.19758862]
[1757300118939,1.01619272,879.0,878.91,0.19758862]
[1757300119340,1.01619272,878.96,878.91,0.19758862]
[1757300120142,1.01619272,878.95,878.91,0.19758862]
[1757300121348,1.01619272,878.94,878.91,0.19758862]
[1757300122343,1.01619272,878.92,878.91,0.19758862]
[1757300123543,1.52875662,879.06,878.91,0.19758862]
[1757300126845,1.52875662,879.07,878.91,0.19758862]
[1757300127047,1.52875662,879.06,878.91,0.19758862]
[1757300127241,1.52875662,879.05,878.91,0.19758862]
[1757300127952,1.0149533,879.13,878.91,0.19758862]
[1757300128344,1.0149533,878.98,878.91,0.19758862]
[1757300128648,1.0149533,878.92,878.91,0.19758862]
[1757300128948,1.52875662,879.16,878.91,0.19758862]
[1757300129349,2.54877251,880.26,878.91,0.19758862]
[1757300129350,1.01520918,878.96,878.91,0.19758862]
[1757300130650,1.01520918,879.06,878.91,0.19758862]
[1757300130949,1.01520918,879.12,878.91,0.19758862]
[1757300131250,1.01520918,879.13,878.91,0.19758862]
[1757300131451,1.01520918,879.12,878.91,0.19758862]
[1757300132151,1.01520918,879.13,878.91,0.19758862]
[1757300134454,1.01520918,879.12,878.91,0.19758862]
[1757300135452,1.01520918,879.11,878.91,0.19758862]
[1757300135748,1.01520918,879.12,878.91,0.19758862]
[1757300136448,1.01520918,879.11,878.91,0.19758862]
[1757300137353,1.01520918,879.1,878.91,0.19758862]
[1757300137854,1.01520918,879.04,878.91,0.19758862]
[1757300138052,1.01520918,879.05,878.91,0.19758862]
[1757300139256,1.01520918,879.2,878.91,0.19758862]
[1757300140652,1.01520918,879.14,878.91,0.19758862]
[1757300141253,1.01520918,879.13,878.91,0.19758862]
[1757300143456,1.01520918,879.16,878.91,0.19758862]
[1757300145457,1.01520918,879.15,878.91,0.19758862]
[1757300146459,1.01520918,879.14,878.91,0.19758862]
[1757300147056,1.01520918,879.13,878.91,0.19758862]
[1757300147456,1.01520918,879.12,878.91,0.19758862]
[1757300147658,1.01520918,879.03,878.91,0.19758862]
[1757300148562,1.01520918,879.06,878.91,0.19758862]
[1757300148760,1.01520918,878.99,878.91,0.19758862]
[1757300148959,1.01520918,878.95,878.91,0.19758862]
[1757300149362,1.52875662,878.95,878.91,0.19758862]
[1757300149959,1.52875662,878.96,878.91,0.19758862]
[1757300151966,1.52875662,879.01,878.91,0.19758862]
[1757300152367,1.52875662,879.0,878.91,0.19758862]
[1757300152567,1.52875662,878.99,878.91,0.19758862]
[1757300153366,1.52875662,878.98,878.91,0.19758862]
[1757300153768,1.52875662,878.94,878.91,0.19758862]
[1757300154269,2.54877251,879.8,878.91,0.19758862]
[1757300154668,2.54877251,879.68,878.91,0.19758862]
[1757300155270,2.54877251,879.7,878.91,0.19758862]
[1757300156370,2.54877251,879.72,878.92,1.165]
[1757300156973,2.54877251,879.71,878.92,1.165]
[1757300157565,2.54877251,879.7,878.92,1.165]
[1757300157969,2.54877251,879.76,878.92,1.165]
[1757300158470,2.54877251,879.7,878.92,1.165]
[1757300158970,2.54877251,879.76,878.92,1.165]
[1757300159365,2.54877251,879.75,878.92,1.165]
[1757300161571,2.54877251,879.78,878.92,1.165]
[1757300162169,2.54877251,879.77,878.92,1.165]
[1757300162575,1.52812766,878.93,878.92,1.165]
[1757300163075,2.54877251,879.86,878.92,1.165]
[1757300163076,1.52812766,878.94,878.92,1.165]
[1757300163874,1.52812766,878.95,878.92,1.165]
[1757300165682,1.01861043,879.06,878.92,1.165]
[1757300165876,1.01861043,879.21,878.92,1.165]
[1757300166178,1.01861043,879.22,878.92,1.165]
[1757300166376,1.01861043,879.2,878.92,1.165]
[1757300166579,1.01861043,879.14,878.92,1.165]
[1757300166776,1.01861043,879.13,878.92,1.165]
[1757300167079,1.01861043,879.14,878.92,1.165]
[1757300167274,1.01861043,879.13,878.92,1.165]
[1757300167477,1.01861043,879.12,878.92,1.165]
[1757300169076,1.01861043,879.04,878.92,1.165]
[1757300169277,1.01861043,878.97,878.92,1.165]
[1757300169481,1.01861043,878.95,878.92,1.165]
[1757300170079,1.52812766,879.11,878.92,1.165]
[1757300170284,1.52812766,879.13,878.92,1.165]
[1757300171280,1.52812766,879.14,878.92,1.165]
[1757300171485,1.52812766,879.14,878.91,0.19758862]
[1757300172386,1.52812766,879.08,878.91,0.19758862]
[1757300172587,1.52812766,879.05,878.91,0.19758862]
[1757300173391,0.61995423,879.04,877.65,1.02392054]
[1757300173593,1.01803913,878.86,877.45,1.53588082]
[1757300173793,0.61995423,878.85,877.45,1.53588082]
[1757300173987,0.61995423,878.84,877.46,1.162]
[1757300174189,0.61995423,878.83,877.46,1.162]
[1757300174389,0.61995423,878.82,877.46,1.162]
[1757300174594,1.01803913,878.87,877.65,1.01480322]
[1757300176295,1.01803913,878.87,877.64,1.01480322]
[1757300176691,1.01803913,878.87,877.94,0.19770144]
[1757300178199,1.01803913,878.89,877.94,0.19770144]
[1757300178798,1.01803913,878.9,877.94,0.19770144]
[1757300179497,1.01803913,879.0,877.94,0.19770144]
[1757300179895,3.56828151,880.4,877.94,0.19770144]
[1757300179896,1.01803913,878.99,877.94,0.19770144]
[1757300180093,1.01803913,878.98,877.94,0.19770144]
[1757300180593,1.01803913,878.99,877.94,0.19770144]
[1757300182309,0.79581524,878.94,877.94,0.19770144]
[1757300184304,1.52812766,879.12,877.94,0.19770144]
[1757300184897,1.52812766,879.13,877.94,0.19770144]
[1757300185502,1.52812766,879.14,877.94,0.19770144]
[1757300187410,1.52812766,879.18,877.94,0.19770144]
[1757300188110,1.52812766,879.15,877.94,0.19770144]
[1757300188707,1.52812766,879.14,877.94,0.19770144]
[1757300189210,1.52812766,879.34,877.94,0.19770144]
[1757300189414,1.52812766,879.59,877.94,0.19770144]
[1757300189613,1.52812766,879.58,877.94,0.19770144]
[1757300190710,1.52812766,879.59,877.94,0.19770144]
[1757300193315,1.52812766,879.61,877.94,0.19770144]
[1757300195019,1.52812766,879.6,877.94,0.19770144]
[1757300196220,1.52812766,879.61,877.94,0.19770144]
[1757300197316,1.52812766,879.6,877.94,0.19770144]
[1757300197520,1.52812766,879.59,877.94,0.19770144]
[1757300198414,1.52812766,879.6,877.94,0.19770144]
[1757300198916,1.52812766,879.64,877.94,0.19770144]
[1757300199121,1.52812766,879.54,877.95,1.01480322]
[1757300199322,1.52812766,879.33,877.94,0.19770144]
[1757300200218,1.52812766,879.34,877.94,0.19770144]
[1757300200519,1.52812766,879.38,877.94,0.19770144]
[1757300201925,1.52812766,879.33,877.94,0.19770144]
[1757300202219,1.52812766,879.35,877.94,0.19770144]
[1757300203020,1.52812766,879.33,877.94,0.19770144]
[1757300206125,1.52812766,879.34,877.94,0.19770144]
[1757300206324,1.52812766,879.35,877.94,0.19770144]
[1757300208622,1.52812766,879.27,877.94,0.19770144]
[1757300209425,1.52812766,879.29,877.94,0.19770144]
[1757300210233,2.54877251,879.99,877.94,0.19770144]
[1757300210624,2.54877251,880.11,877.94,0.19770144]
[1757300212126,2.54877251,880.06,877.94,0.19770144]
[1757300212330,1.01666378,879.14,877.94,0.19770144]
[1757300214231,1.01666378,879.15,877.94,0.19770144]
[1757300214731,1.01666378,879.16,877.94,0.19770144]
[1757300215433,1.01666378,879.15,877.94,0.19770144]
[1757300215932,1.01666378,879.14,877.94,0.19770144]
[1757300217132,1.01666378,879.14,877.91,1.01480322]
[1757300217329,1.01666378,879.13,877.91,1.01480322]
[1757300218635,1.01666378,879.12,877.92,1.01480322]
[1757300219334,1.01666378,879.16,877.96,1.01480322]
[1757300219547,1.01666378,879.18,877.95,1.01480322]
[1757300219731,1.01666378,879.19,877.96,1.01480322]
[1757300220235,1.01666378,879.14,877.99,1.01480322]
[1757300220435,0.80900328,879.14,877.99,1.01480322]
[1757300220832,2.54877251,880.0,878.0,1.01480322]
[1757300221137,2.54877251,880.0,877.99,1.01480322]
[1757300221432,2.54877251,880.01,877.99,1.01480322]
[1757300221735,2.54877251,880.01,878.16,0.19760545]
[1757300222536,2.54877251,880.0,878.16,0.19760545]
[1757300222834,2.54877251,880.0,878.17,0.947]
[1757300223036,2.54877251,879.99,878.17,0.947]
[1757300223634,3.56828151,880.33,878.17,0.947]
[1757300224334,0.19757965,880.6,878.17,0.947]
[1757300230139,1.52788636,879.8,878.17,0.947]
[1757300230438,1.52788636,879.81,878.17,0.947]
[1757300231642,1.52788636,880.5,878.17,0.947]
[1757300231839,1.52788636,880.51,878.17,0.947]
[1757300232343,1.52788636,880.57,878.17,0.947]
[1757300232543,1.52788636,880.61,878.17,0.947]
[1757300232946,1.52788636,880.18,878.31,1.01480322]
[1757300233343,1.52788636,880.05,878.4,1.01480322]
[1757300233639,1.52788636,879.94,878.48,1.01480322]
[1757300234244,1.52788636,879.96,878.45,1.01480322]
[1757300235145,1.52788636,879.98,878.43,1.01480322]
[1757300236146,1.52788636,880.03,878.4,1.01480322]
[1757300236346,1.52788636,880.04,878.38,1.01480322]
[1757300236947,1.52788636,880.11,878.34,1.01480322]
[1757300237249,1.52788636,880.11,878.31,1.01480322]
[1757300237842,0.19753423,880.84,878.17,0.947]
[1757300237843,1.52788636,880.1,878.32,1.01480322]
[1757300238249,1.52788636,880.11,878.3,1.01480322]
[1757300239251,1.52788636,879.97,878.17,0.947]
[1757300240853,1.52788636,880.0,878.17,0.947]
[1757300241255,1.52788636,880.01,878.17,0.947]
[1757300242151,1.52788636,880.04,878.17,0.947]
[1757300242551,1.52788636,880.03,878.17,0.947]
[1757300242749,1.52788636,880.04,878.17,0.947]
[1757300243153,1.52788636,880.03,878.17,0.947]
[1757300243451,1.52788636,880.02,878.17,0.947]
[1757300245850,1.52788636,880.02,878.16,0.19760545]
[1757300246054,1.52788636,880.0,878.16,0.19760545]
[1757300246854,1.52788636,879.93,878.16,0.19760545]
[1757300248055,1.52788636,879.93,878.17,1.154]
[1757300249254,1.52788636,879.91,878.17,1.154]
[1757300249550,1.52788636,879.94,878.17,1.154]
[1757300249752,1.52788636,879.96,878.25,1.01480322]
[1757300249951,1.52788636,879.97,878.24,1.01480322]
[1757300250252,1.52788636,879.98,878.23,1.01480322]
[1757300250456,1.01226103,879.8,878.23,1.01480322]
[1757300250657,1.01226103,879.87,878.17,2.16880322]
[1757300250857,1.01226103,879.88,878.17,2.16880322]
[1757300251054,1.01226103,879.88,878.17,1.154]
[1757300259460,1.01226103,879.89,878.17,1.154]
[1757300260561,1.01226103,879.83,878.17,2.16880322]
[1757300260862,1.01226103,879.81,878.19,1.01480322]
[1757300261664,2.54877251,880.68,878.17,1.154]
[1757300261665,1.01226103,880.18,878.17,1.154]
[1757300261864,1.01226103,879.99,878.17,1.154]
[1757300263262,1.01226103,880.0,878.17,1.154]
[1757300263461,1.52788636,880.31,878.17,1.154]
[1757300263462,1.01226103,879.67,878.17,1.154]
[1757300263760,1.01226103,879.65,878.17,1.154]
[1757300264466,1.01226103,879.66,878.17,1.154]
[1757300265464,1.01226103,879.65,878.17,1.154]
[1757300268268,1.01226103,879.64,878.16,0.19760545]
[1757300269365,1.01226103,879.66,878.16,0.19760545]
[1757300269566,1.01226103,879.6,878.16,0.19760545]
[1757300269766,1.01226103,879.59,878.16,0.19760545]
[1757300270167,1.01226103,879.58,878.16,0.19760545]
[1757300271188,1.01226103,879.58,878.17,1.469]
[1757300272173,1.01226103,879.49,878.17,1.469]
[1757300272876,1.01226103,879.51,878.17,1.469]
[1757300273270,1.01226103,879.5,878.17,1.469]
[1757300273571,1.01226103,879.51,878.17,1.469]
[1757300274372,1.01226103,879.52,878.17,1.469]
[1757300275177,1.01226103,879.51,878.17,1.469]
[1757300278380,1.01226103,879.5,878.17,1.469]
[1757300279378,1.01226103,879.62,878.19,1.01480322]
[1757300279678,1.01226103,879.6,878.21,1.01480322]
[1757300280082,1.01226103,879.55,878.24,1.01480322]
[1757300280479,1.01226103,879.56,878.25,1.01480322]
[1757300281383,1.01226103,879.54,878.28,1.01480322]
[1757300281982,1.01226103,879.53,878.29,1.01480322]
[1757300282186,1.01226103,879.53,878.17,1.469]
[1757300282187,0.80983178,879.53,878.3,1.01480322]
[1757300282385,1.52788636,879.68,878.31,1.01480322]
[1757300282586,1.52788636,879.77,878.3,1.01480322]
[1757300282781,1.52788636,879.78,878.3,1.01480322]
[1757300283282,1.52788636,879.78,878.31,1.01480322]
[1757300283486,1.52788636,879.78,878.32,1.01480322]
[1757300284382,1.52788636,879.78,878.33,1.01480322]
[1757300286188,1.52788636,879.77,878.34,1.01480322]
[1757300287289,1.52788636,879.77,878.35,1.01480322]
[1757300287890,1.52788636,879.76,878.36,1.01480322]
[1757300288088,1.52788636,879.79,878.38,1.01480322]
[1757300288388,1.52788636,879.78,878.39,1.01480322]
[1757300289189,1.52788636,879.78,878.4,1.01480322]
[1757300289486,1.52788636,879.62,878.41,1.119]
[1757300290690,1.52788636,879.61,878.41,1.119]
[1757300291392,1.2324268,879.6,878.41,1.119]
[1757300291787,2.54877251,880.24,878.41,1.119]
[1757300292590,2.54877251,880.14,878.41,1.119]
[1757300293190,2.54877251,880.12,878.41,1.119]
[1757300296789,2.54877251,880.14,878.41,1.119]
[1757300297292,5.09754502,880.85,878.41,1.119]
[1757300297293,2.54877251,880.37,878.41,1.119]
[1757300297792,2.54877251,880.36,878.41,1.119]
[1757300298292,2.54877251,880.37,878.41,1.119]
[1757300298988,2.54877251,880.45,878.41,1.119]
[1757300299288,2.54877251,880.44,878.41,1.119]
[1757300300389,2.54877251,880.47,878.41,1.119]
[1757300301389,2.54877251,880.49,878.41,1.119]
[1757300303494,2.54877251,880.48,878.41,1.119]
[1757300304594,2.54877251,880.47,878.41,1.119]
[1757300305090,2.54877251,880.49,878.41,1.119]
[1757300306592,2.54877251,880.52,878.41,1.119]
[1757300307200,2.54877251,880.43,878.41,1.119]
[1757300308698,2.54877251,880.35,878.41,1.119]
[1757300309698,2.54877251,880.27,878.41,1.119]
[1757300310297,2.54877251,880.23,878.41,1.119]
[1757300310699,2.54877251,880.25,878.41,1.119]
[1757300311498,1.52504103,879.65,878.41,1.119]
[1757300311995,1.52504103,879.7,878.41,1.119]
[1757300312295,1.01683584,879.49,878.41,1.119]
[1757300313399,1.01683584,879.48,878.41,1.119]
[1757300313900,1.01683584,879.49,878.41,1.119]
[1757300314100,1.01683584,879.48,878.41,1.119]
[1757300314300,1.01683584,879.47,878.41,1.119]
[1757300315297,1.01683584,879.46,878.41,1.119]
[1757300315498,1.01683584,879.52,878.41,1.119]
[1757300316297,1.01683584,879.51,878.41,1.119]
[1757300317502,1.01683584,879.52,878.41,1.119]
[1757300317704,1.01683584,879.55,878.41,1.119]
[1757300317898,1.01683584,879.56,878.41,1.119]
[1757300318300,1.01683584,879.55,878.41,1.119]
[1757300318902,1.01683584,879.54,878.41,1.119]
[1757300319305,1.01683584,879.77,878.43,1.01480322]
[1757300320205,1.01683584,879.77,878.44,1.01480322]
[1757300320403,1.01683584,879.76,878.44,1.01480322]
[1757300321405,1.01683584,879.74,878.46,1.01480322]
[1757300321905,1.01683584,879.74,878.41,1.119]
[1757300321906,1.01683584,879.73,878.47,1.01480322]
[1757300323806,1.01683584,879.72,878.48,1.01480322]
[1757300324702,1.01683584,879.71,878.47,1.01480322]
[1757300325507,1.01683584,879.68,878.5,1.01480322]
[1757300326608,1.01683584,879.68,878.41,1.119]
[1757300326609,1.01683584,879.68,878.51,1.01480322]
[1757300326814,1.01683584,879.67,878.51,1.01480322]
[1757300327313,1.01683584,879.66,878.52,1.01480322]
[1757300327719,1.01683584,879.6,878.57,1.01480322]
[1757300328018,0.82707315,879.56,878.6,1.01480322]
[1757300328719,0.82707315,879.56,878.61,1.01480322]
[1757300329520,1.52504103,879.59,878.47,1.01480322]
[1757300329720,1.52504103,879.58,878.48,1.01480322]
[1757300330719,1.52504103,879.53,878.51,1.01480322]
[1757300331222,1.52504103,879.52,878.51,1.01480322]
[1757300331518,1.52504103,879.53,878.51,1.01480322]
[1757300331918,1.52504103,879.54,878.5,1.01480322]
[1757300332123,1.52504103,879.53,878.51,1.01480322]
[1757300332320,1.52504103,879.52,878.51,1.01480322]
[1757300332820,1.52504103,879.53,878.51,1.01480322]
[1757300333624,1.52504103,879.58,878.48,1.01480322]
[1757300333827,1.2468247,879.58,878.48,1.01480322]
[1757300334127,2.54877251,880.22,878.49,1.01480322]
[1757300334326,2.54877251,880.21,878.49,1.01480322]
[1757300335825,2.54877251,880.22,878.49,1.01480322]
[1757300336120,2.54877251,880.22,878.48,1.01480322]
[1757300336325,2.54877251,880.25,878.48,1.01480322]
[1757300336825,3.56828151,880.54,878.41,1.119]
[1757300337125,0.19753647,880.96,878.41,1.119]
[1757300337621,2.54877251,880.92,878.54,1.01480322]
[1757300337923,2.54877251,880.92,878.55,1.01480322]
[1757300338230,2.54877251,880.91,878.55,1.01480322]
[1757300338525,2.54877251,880.91,878.54,1.01480322]
[1757300338722,2.54877251,880.92,878.54,1.01480322]
[1757300339022,2.54877251,880.92,878.55,1.01480322]
[1757300339221,2.54877251,880.88,878.55,1.01480322]
[1757300339425,2.54877251,880.88,878.49,1.01480322]
[1757300339726,2.54877251,880.84,878.49,1.01480322]
[1757300341528,2.54877251,880.84,878.48,1.01480322]
[1757300341825,2.54877251,880.85,878.48,1.01480322]
[1757300342229,2.54877251,880.85,878.51,1.01480322]
[1757300342524,2.54877251,880.74,878.5,1.01480322]
[1757300342927,2.54877251,880.76,878.5,1.01480322]
[1757300343430,2.54877251,880.76,878.49,1.01480322]
[1757300344528,2.54877251,880.77,878.55,1.01480322]
[1757300344829,2.54877251,880.53,878.55,1.01480322]
[1757300345331,2.54877251,880.53,878.56,1.186]
[1757300346629,2.54877251,880.52,878.56,2.20080322]
[1757300347433,2.54877251,880.52,878.59,1.01480322]
[1757300347633,2.54877251,880.41,878.59,1.01480322]
[1757300348033,2.54877251,880.39,878.59,1.01480322]
[1757300348630,2.54877251,880.38,878.59,1.01480322]
[1757300348933,2.54877251,880.38,878.6,1.01480322]
[1757300349134,2.54877251,880.34,878.6,1.01480322]
[1757300349428,2.54877251,880.34,878.56,1.186]
[1757300349627,2.54877251,880.29,878.56,1.186]
[1757300350234,2.54877251,880.3,878.56,1.186]
[1757300351334,2.54877251,880.37,878.56,1.186]
[1757300351629,2.54877251,880.38,878.56,1.186]
[1757300352130,2.54877251,880.37,878.56,1.186]
[1757300352735,2.54877251,880.32,878.56,1.186]
[1757300353734,2.54877251,880.33,878.56,1.186]
[1757300353939,1.52531732,879.73,878.56,1.186]
[1757300354135,1.22350388,879.73,878.56,1.186]
[1757300354439,2.54877251,880.33,878.56,1.186]
[1757300355434,2.54877251,880.4,878.56,1.186]
[1757300356440,2.54877251,880.39,878.56,1.186]
[1757300357338,2.54877251,880.4,878.56,1.186]
[1757300357935,1.01673855,879.63,878.56,1.186]
[1757300358134,1.01673855,879.64,878.56,1.186]
[1757300358838,1.01673855,879.66,878.56,1.186]
[1757300359338,1.01673855,879.72,878.56,1.186]
[1757300360240,1.01673855,880.03,878.56,1.186]
[1757300360437,1.01673855,880.04,878.56,1.186]
[1757300361453,1.01673855,880.05,878.56,1.186]
[1757300363336,1.01673855,880.06,878.56,1.186]
[1757300364341,1.01673855,880.11,878.56,1.186]
[1757300364541,1.01673855,880.04,878.57,1.01480322]
[1757300364842,1.01673855,880.05,878.58,1.01480322]
[1757300365443,1.01673855,880.06,878.57,1.01480322]
[1757300366241,1.01673855,880.06,878.56,2.20080322]
[1757300366440,1.01673855,880.05,878.57,1.01480322]
[1757300366636,1.01673855,879.98,878.61,1.01480322]
[1757300367041,1.01673855,879.93,878.66,1.01480322]
[1757300367342,1.01673855,879.93,878.65,1.01480322]
[1757300367542,1.01673855,879.94,878.64,1.01480322]
[1757300368443,1.01673855,879.95,878.64,1.01480322]
[1757300369345,1.01673855,880.13,878.81,1.01480322]
[1757300371544,2.54877251,881.04,878.8,1.01480322]
[1757300371545,1.01673855,880.12,878.8,1.01480322]
[1757300372244,1.01673855,880.12,878.56,1.186]
[1757300372245,1.01673855,880.42,878.56,1.186]
[1757300372442,1.01673855,880.25,878.56,1.186]
[1757300373943,1.01673855,880.23,878.56,1.186]
[1757300374643,1.01673855,880.24,878.56,1.186]
[1757300375146,1.01673855,880.25,878.56,1.186]
[1757300376248,1.01673855,880.21,878.56,1.186]
[1757300376448,1.01673855,880.2,878.56,1.186]
[1757300377243,1.01673855,880.09,878.56,1.186]
[1757300377448,1.01673855,880.07,878.56,1.186]
[1757300377849,1.01673855,880.03,878.56,1.186]
[1757300378343,1.01673855,880.02,878.56,1.186]
[1757300378848,1.01673855,880.03,878.56,1.186]
[1757300379447,1.01673855,879.88,878.56,1.186]
[1757300379843,1.01673855,879.86,878.56,1.186]
[1757300380448,1.01673855,879.77,878.56,1.186]
[1757300380749,1.01673855,879.67,878.56,1.186]
[1757300381849,1.01673855,879.66,878.56,1.186]
[1757300382450,1.01673855,879.66,878.23,1.01480322]
[1757300382645,1.01673855,879.71,878.19,1.01480322]
[1757300383246,1.01673855,879.71,878.18,1.01480322]
[1757300383746,1.01673855,879.73,878.16,0.19760545]
[1757300385454,1.01673855,879.73,878.17,0.994]
[1757300386148,1.01673855,879.74,878.17,0.994]
[1757300387470,1.01673855,879.75,878.17,0.994]
[1757300387654,1.01673855,879.71,878.17,0.994]
[1757300388353,1.01673855,879.72,878.17,0.994]
[1757300389455,1.01673855,879.8,878.17,0.994]
[1757300389652,1.01673855,880.01,878.17,0.994]
[1757300389855,1.01673855,880.03,878.17,0.994]
[1757300390256,1.01673855,880.06,878.17,0.994]
[1757300390456,1.01673855,880.07,878.17,0.994]
[1757300390658,1.01673855,880.09,878.17,0.994]
[1757300391459,1.01673855,879.81,878.43,1.01480322]
[1757300391654,1.01673855,879.8,878.43,1.01480322]
[1757300391853,1.01673855,879.81,878.43,1.01480322]
[1757300392257,1.01673855,879.8,878.44,1.01480322]
[1757300392454,1.01673855,879.9,878.43,1.01480322]
[1757300393355,1.01673855,879.95,878.4,1.01480322]
[1757300394360,1.01673855,879.94,878.4,1.01480322]
[1757300396261,1.01673855,879.94,878.41,1.01480322]
[1757300398267,1.01673855,879.92,878.42,1.01480322]
[1757300398469,1.01673855,879.89,878.44,1.01480322]
[1757300399566,1.01673855,879.82,878.37,1.01480322]
[1757300401364,1.01673855,879.81,878.37,1.01480322]
[1757300401570,1.01673855,879.82,878.37,1.01480322]
[1757300401766,1.01673855,879.82,878.36,1.01480322]
[1757300402270,1.01673855,879.78,878.4,1.01480322]
[1757300402677,1.01673855,879.94,878.27,1.01480322]
[1757300402872,1.01673855,879.93,878.28,1.01480322]
[1757300403270,1.01673855,879.91,878.29,1.01480322]
[1757300403872,1.01673855,879.9,878.29,1.01480322]
[1757300404569,1.01673855,880.02,878.2,1.01480322]
[1757300405370,1.01673855,879.98,878.27,1.01480322]
[1757300405574,1.01673855,880.08,878.37,1.01480322]
[1757300405774,1.01673855,880.08,878.38,1.01480322]
[1757300406172,1.01673855,880.09,878.38,1.01480322]
[1757300406977,1.01673855,880.03,878.57,1.01480322]
[1757300407274,1.01673855,880.17,878.49,1.01480322]
[1757300407473,1.01673855,880.16,878.5,1.01480322]
[1757300407674,1.01673855,880.17,878.49,1.01480322]
[1757300408276,1.01673855,880.16,878.5,1.01480322]
[1757300408478,1.01673855,880.2,878.42,1.01480322]
[1757300408876,1.01673855,880.19,878.43,1.01480322]
[1757300409279,1.01673855,880.2,878.43,1.01480322]
[1757300409476,1.01673855,880.34,878.56,1.01480322]
[1757300409774,1.01673855,880.26,878.62,1.01480322]
[1757300409978,1.01673855,880.31,878.59,1.01480322]
[1757300410175,1.01673855,880.3,878.59,1.01480322]
[1757300410381,1.01673855,880.29,878.57,1.01480322]
[1757300410775,1.01673855,880.28,878.57,1.01480322]
[1757300411080,1.01673855,880.25,878.6,1.01480322]
[1757300411379,1.01673855,880.19,878.6,1.01480322]
[1757300413482,1.01673855,880.2,878.6,1.01480322]
[1757300413781,1.01673855,880.22,878.55,1.01480322]
[1757300413978,1.01673855,880.15,878.53,1.01480322]
[1757300414179,1.01673855,880.04,878.53,1.01480322]
[1757300414579,1.01673855,880.0,878.38,1.01480322]
[1757300415384,1.01673855,880.01,878.38,1.01480322]
[1757300415680,1.01673855,879.98,878.4,1.01480322]
[1757300415881,1.01673855,879.97,878.41,1.01480322]
[1757300416085,1.01673855,879.97,878.4,1.01480322]
[1757300416282,1.01673855,879.98,878.4,1.01480322]